[Event "Portuguese Chess-ch 2022"]
[Site "Leiria"]
[Date "2022.09.15"]
[Round "4.4"]
[White "Fidalgo, Andre"]
[Black "Sousa, Andre"]
[Result "0-1"]
[ECO "B12"]
[WhiteElo "2258"]
[BlackElo "2449"]
[Annotator "ChessBase"]
[PlyCount "112"]
[EventDate "2022.09.11"]
[EventCountry "POR"]
[SourceTitle "playchess.com"]
[Source "ChessBase"]
[SourceQuality "1"]
[TimeControl "5400+30"]

1. e4 {[%emt 0:00:51]} c6 {[%emt 0:00:05]} 2. d4 {[%emt 0:00:07]} d5 {[%emt 0:00:03]} 3. e5 {[%emt 0:00:06]} Bf5 {[%emt 0:00:03]} 4. h4 {[%emt 0:00:11]} h5 {[%emt 0:00:04]} 5. Bd3 {[%emt 0:00:08]} Bxd3 {[%emt 0:00:04]} 6. Qxd3 {[%emt 0:00:07]} Qa5+ {[%emt 0:00:03]} 7. Nd2 {[%emt 0:00:10]} e6 {[%emt 0:00:03]} 8. Ngf3 {[%emt 0:00:11]} Nh6 {[%emt 0:00:13]} 9. O-O {[%emt 0:00:24]} Nf5 {[%emt 0:00:02]} 10. Nb3 {[%emt 0:01:06]} Qb5 {[%emt 0:00:03]} 11. Qd1 {[%emt 0:08:18]} c5 {[%emt 0:00:16]} 12. a4 {[%emt 0:07:52]} Qb6 {[%emt 0:00:04]} 13. dxc5 {[%emt 0:03:32]} Bxc5 {[%emt 0:00:05]} 14. Nxc5 {[%emt 0:02:14]} Qxc5 {[%emt 0:00:11]} 15. b3 {[%emt 0:00:18]} Qb4 {[%emt 0:00:53]} 16. Ba3 {[%emt 0:34:09]} Qg4 {[%emt 0:00:15]} 17. Qd3 {[%emt 0:00:35]} Nc6 {[%emt 0:09:13]} 18. c4 {[%emt 0:02:48]} O-O-O {[%emt 0:10:57]} 19. Rfe1 {[%emt 0:08:26]} dxc4 {[%emt 0:15:24]} 20. Qxc4 {[%emt 0:00:13]} Nfd4 {[%emt 0:00:51]} 21. Nh2 {[%emt 0:04:47]} Qf5 {[%emt 0:16:40]} 22. Rac1 {[%emt 0:01:08]} Rd5 {[%emt 0:09:53]} 23. Nf1 {[%emt 0:03:50]} Qg4 {[%emt 0:00:30]} 24. Ng3 {[%emt 0:06:14]} Qg6 {[%emt 0:08:00]} 25. Bd6 {[%emt 0:02:25]} f5 {[%emt 0:04:22]} 26. Red1 {[%emt 0:01:06]} Qg4 {[%emt 0:00:21]} 27. Kf1 {[%emt 0:08:37]} g5 {[%emt 0:02:04]} 28. b4 {[%emt 0:01:07]} gxh4 {[%emt 0:01:49]} 29. b5 {[%emt 0:00:50]} hxg3 {[%emt 0:00:24]} 30. bxc6 {[%emt 0:00:16]} Nxc6 {[%emt 0:00:13]} 31. Qb3 {[%emt 0:03:05]} Rxd1+ {[%emt 0:01:02]} 32. Rxd1 {[%emt 0:00:07]} Qg6 {[%emt 0:03:48]} 33. a5 {[%emt 0:00:19]} a6 {[%emt 0:04:44]} 34. Rc1 {[%emt 0:00:16]} Qe8 {[%emt 0:00:06]} 35. Qb6 {[%emt 0:00:22]} Qd7 {[%emt 0:00:31]} 36. Qa7 {[%emt 0:01:24]} Kd8 {[%emt 0:00:15]} 37. Qe3 {[%emt 0:00:37]} gxf2 {[%emt 0:03:15]} 38. Rd1 {[%emt 0:00:26]} Ke8 {[%emt 0:01:43]} 39. Rc1 {[%emt 0:00:45]} Kf7 {[%emt 0:01:58]} 40. Qg5 Qd8 {[%emt 0:00:00]} 41. Qe3 {[%emt 0:00:00]} Qh4 {[%emt 0:00:00]} 42. Qd2 {[%emt 0:00:00]} Rg8 {[%emt 0:00:00]} 43. Qxf2 {[%emt 0:00:00]} Rg4 {[%emt 0:00:00]} 44. Qxh4 Rxh4 {[%emt 0:00:00]} 45. Kf2 {[%emt 0:00:00]} Ra4 {[%emt 0:00:00]} 46. Rb1 {[%emt 0:00:00]} Nxa5 {[%emt 0:00:00]} 47. Rb6 {[%emt 0:00:00]} Re4 {[%emt 0:00:00]} 48. Kg3 {[%emt 0:00:00]} Kg6 {[%emt 0:00:00]} 49. Bc7 {[%emt 0:00:00]} Nc6 {[%emt 0:00:00]} 50. Rxb7 {[%emt 0:00:00]} Rb4 {[%emt 0:00:00]} 51. Rxb4 {[%emt 0:00:00]} Nxb4 {[%emt 0:00:00]} 52. Kf3 {[%emt 0:00:00]} Nc6 {[%emt 0:00:00]} 53. Kf4 {[%emt 0:00:00]} a5 {[%emt 0:00:00]} 54. Bd6 {[%emt 0:00:00]} a4 {[%emt 0:00:00]} 55. Bc5 {[%emt 0:00:00]} Na5 {[%emt 0:00:00]} 56. Ke3 {[%emt 0:00:00]} a3 {[%emt 0:00:00]} 0-1

[Event "Portuguese Chess-ch 2022"]
[Site "Leiria"]
[Date "2022.09.15"]
[Round "4.5"]
[White "Martins, Bruno Andre Leite"]
[Black "Veiga, Jose Francisco R P N"]
[Result "0-1"]
[ECO "B42"]
[WhiteElo "2308"]
[BlackElo "2389"]
[Annotator "ChessBase"]
[PlyCount "93"]
[EventDate "2022.09.11"]
[EventCountry "POR"]
[SourceTitle "playchess.com"]
[Source "ChessBase"]
[SourceQuality "1"]
[TimeControl "5400+30"]

1. e4 {[%emt 0:00:04]} c5 {[%emt 0:07:37]} 2. Nf3 {[%emt 0:00:08]} e6 {[%emt 0:00:58]} 3. d4 {[%emt 0:00:51]} cxd4 {[%emt 0:00:11]} 4. Nxd4 {[%emt 0:00:07]} a6 {[%emt 0:00:25]} 5. Bd3 {[%emt 0:00:33]} Qc7 {[%emt 0:02:53]} 6. O-O {[%emt 0:00:44]} Nc6 {[%emt 0:02:11]} 7. Nxc6 {[%emt 0:01:49]} Qxc6 {[%emt 0:04:47]} 8. Qe2 {[%emt 0:04:52]} b6 {[%emt 0:03:59]} 9. c4 {[%emt 0:06:24]} Bb7 {[%emt 0:02:01]} 10. Nc3 {[%emt 0:00:20]} Be7 {[%emt 0:00:33]} 11. f4 {[%emt 0:03:58]} d6 {[%emt 0:01:03]} 12. Kh1 {[%emt 0:11:58]} Nf6 {[%emt 0:01:18]} 13. Bd2 {[%emt 0:05:06]} O-O {[%emt 0:01:53]} 14. Rae1 {[%emt 0:01:22]} Rfe8 {[%emt 0:02:11]} 15. Rf3 {[%emt 0:08:17]} Nd7 {[%emt 0:01:26]} 16. e5 {[%emt 0:03:18]} Nf8 {[%emt 0:07:01]} 17. Rh3 {[%emt 0:07:07]} dxe5 {[%emt 0:04:30]} 18. fxe5 {[%emt 0:10:15]} Rad8 {[%emt 0:02:53]} 19. Be4 {[%emt 0:02:58]} Qd7 {[%emt 0:01:17]} 20. Bxb7 {[%emt 0:06:20]} Qxb7 {[%emt 0:06:55]} 21. Ne4 {[%emt 0:01:14]} b5 {[%emt 0:07:04]} 22. cxb5 {[%emt 0:05:36]} Qxb5 {[%emt 0:02:23]} 23. Qh5 {[%emt 0:04:54]} Rd3 {[%emt 0:03:11]} 24. Rxd3 {[%emt 0:03:41]} Qxd3 {[%emt 0:00:12]} 25. Qe2 {[%emt 0:00:26]} Rd8 {[%emt 0:02:06]} 26. Qxd3 {[%emt 0:00:29]} Rxd3 {[%emt 0:00:03]} 27. Bc3 {[%emt 0:00:32]} Nd7 {[%emt 0:00:44]} 28. Kg1 {[%emt 0:01:30]} Nb6 {[%emt 0:04:49]} 29. Kf1 {[%emt 0:04:06]} Na4 {[%emt 0:02:05]} 30. Bd2 {[%emt 0:01:38]} Nxb2 {[%emt 0:01:09]} 31. Rb1 {[%emt 0:00:41]} Nc4 {[%emt 0:00:15]} 32. Ke2 {[%emt 0:02:54]} Nxd2 {[%emt 0:07:52]} 33. Nxd2 {[%emt 0:00:18]} Ra3 {[%emt 0:02:01]} 34. Rb2 {[%emt 0:00:47]} g5 {[%emt 0:01:11]} 35. Rb7 {[%emt 0:01:21]} Bf8 {[%emt 0:00:50]} 36. Ne4 {[%emt 0:01:03]} Rxa2+ {[%emt 0:01:24]} 37. Kf3 {[%emt 0:00:02]} Ra5 {[%emt 0:00:11]} 38. g4 {[%emt 0:01:06]} Rxe5 {[%emt 0:03:35]} 39. Nf6+ {[%emt 0:00:16]} Kg7 {[%emt 0:00:02]} 40. Nh5+ {[%emt 0:00:00]} Kg6 {[%emt 0:00:00]} 41. Rb8 {[%emt 0:00:00]} Bc5 {[%emt 0:00:00]} 42. Rg8+ {[%emt 0:00:00]} Kh6 {[%emt 0:00:00]} 43. Ra8 {[%emt 0:00:00]} Re3+ {[%emt 0:00:00]} 44. Kg2 {[%emt 0:00:00]} Ra3 {[%emt 0:00:00]} 45. h3 {[%emt 0:00:00]} a5 {[%emt 0:00:00]} 46. Rg8 {[%emt 0:00:00]} Ra2+ {[%emt 0:00:00]} 47. Kh1 {[%emt 0:00:00]} 0-1

[Event "Portuguese Chess-ch 2022"]
[Site "Leiria"]
[Date "2022.09.15"]
[Round "5.2"]
[White "Sousa, Andre"]
[Black "Martins, Bruno Andre Leite"]
[Result "1-0"]
[ECO "D38"]
[WhiteElo "2449"]
[BlackElo "2308"]
[Annotator "ChessBase"]
[PlyCount "49"]
[EventDate "2022.09.11"]
[EventCountry "POR"]
[SourceTitle "playchess.com"]
[Source "ChessBase"]
[SourceQuality "1"]
[TimeControl "5400+30"]

1. d4 {[%emt 0:00:02]} Nf6 {[%emt 0:07:24]} 2. c4 {[%emt 0:00:04]} e6 {[%emt 0:00:21]} 3. Nf3 {[%emt 0:00:02]} d5 {[%emt 0:00:20]} 4. Nc3 {[%emt 0:00:04]} Bb4 {[%emt 0:06:55]} 5. cxd5 {[%emt 0:00:14]} exd5 {[%emt 0:00:13]} 6. Bg5 {[%emt 0:00:04]} h6 {[%emt 0:01:20]} 7. Bh4 {[%emt 0:00:04]} c5 {[%emt 0:02:03]} 8. dxc5 {[%emt 0:00:12]} Nc6 {[%emt 0:02:20]} 9. e3 {[%emt 0:09:12]} g5 {[%emt 0:01:59]} 10. Bg3 {[%emt 0:00:11]} Qa5 {[%emt 0:02:10]} 11. Nd2 {[%emt 0:06:44]} Qxc5 {[%emt 0:11:58]} 12. Rc1 {[%emt 0:01:45]} O-O {[%emt 0:11:44]} 13. Be2 {[%emt 0:19:30]} Qe7 {[%emt 0:06:35]} 14. Nb3 {[%emt 0:03:43]} Ne4 {[%emt 0:09:22]} 15. O-O {[%emt 0:00:29]} Nxc3 {[%emt 0:01:45]} 16. bxc3 {[%emt 0:00:13]} Ba3 {[%emt 0:00:12]} 17. Rc2 {[%emt 0:04:53]} Bf5 {[%emt 0:06:23]} 18. Rd2 {[%emt 0:02:55]} Be4 {[%emt 0:00:35]} 19. c4 {[%emt 0:10:52]} dxc4 {[%emt 0:03:41]} 20. Bxc4 {[%emt 0:00:06]} Bb4 {[%emt 0:04:47]} 21. Rd7 {[%emt 0:02:52]} Qf6 {[%emt 0:04:07]} 22. f4 {[%emt 0:11:16]} Qc3 {[%emt 0:02:01]} 23. Qe2 {[%emt 0:01:35]} Rad8 {[%emt 0:02:16]} 24. Rxd8 {[%emt 0:03:24]} Nxd8 {[%emt 0:00:39]} 25. Be1 {[%emt 0:00:40]} 1-0

[Event "Portuguese Chess-ch 2022"]
[Site "Leiria"]
[Date "2022.09.15"]
[Round "5.3"]
[White "Dias, Paulo"]
[Black "Fidalgo, Andre"]
[Result "0-1"]
[ECO "E53"]
[WhiteElo "2341"]
[BlackElo "2258"]
[Annotator "ChessBase"]
[PlyCount "84"]
[EventDate "2022.09.11"]
[EventCountry "POR"]
[SourceTitle "playchess.com"]
[Source "ChessBase"]
[SourceQuality "1"]
[TimeControl "5400+30"]

1. d4 {[%emt 0:00:46]} Nf6 {[%emt 0:00:17]} 2. c4 {[%emt 0:00:14]} e6 {[%emt 0:00:13]} 3. Nc3 {[%emt 0:02:59]} Bb4 {[%emt 0:00:09]} 4. Nf3 {[%emt 0:01:02]} O-O {[%emt 0:00:26]} 5. e3 {[%emt 0:05:56]} d5 {[%emt 0:02:59]} 6. Bd3 {[%emt 0:01:52]} c5 {[%emt 0:06:50]} 7. O-O {[%emt 0:02:44]} cxd4 {[%emt 0:00:38]} 8. exd4 {[%emt 0:00:25]} dxc4 {[%emt 0:01:08]} 9. Bxc4 {[%emt 0:00:07]} b6 {[%emt 0:01:54]} 10. Qb3 {[%emt 0:07:54]} Be7 {[%emt 0:16:31]} 11. d5 {[%emt 0:03:43]} exd5 {[%emt 0:00:23]} 12. Nxd5 {[%emt 0:01:03]} Ba6 {[%emt 0:10:36]} 13. Re1 {[%emt 0:23:38]} Bxc4 {[%emt 0:02:20]} 14. Nxe7+ {[%emt 0:00:13]} Qxe7 {[%emt 0:00:19]} 15. Qxc4 {[%emt 0:00:21]} Qb7 {[%emt 0:02:14]} 16. Bg5 {[%emt 0:12:40]} Nbd7 {[%emt 0:00:25]} 17. Rad1 {[%emt 0:01:58]} h6 {[%emt 0:06:20]} 18. Bh4 {[%emt 0:00:05]} Rfe8 {[%emt 0:03:19]} 19. Nd4 {[%emt 0:04:16]} Re4 {[%emt 0:06:07]} 20. Bg3 {[%emt 0:04:45]} Rc8 {[%emt 0:06:19]} 21. Qb4 {[%emt 0:03:11]} Qd5 {[%emt 0:08:37]} 22. b3 {[%emt 0:07:44]} Nc5 {[%emt 0:01:51]} 23. f3 {[%emt 0:01:41]} Rxe1+ {[%emt 0:00:45]} 24. Qxe1 {[%emt 0:00:20]} Rd8 {[%emt 0:01:33]} 25. Bf2 {[%emt 0:00:36]} Rd7 {[%emt 0:07:41]} 26. Qc3 {[%emt 0:01:08]} Ne6 {[%emt 0:00:46]} 27. Rd2 {[%emt 0:00:56]} Qc5 {[%emt 0:02:19]} 28. Qc4 {[%emt 0:01:59]} Qa5 {[%emt 0:04:52]} 29. b4 {[%emt 0:06:03]} Qd5 {[%emt 0:04:22]} 30. Qc8+ {[%emt 0:00:11]} Rd8 {[%emt 0:00:13]} 31. Qc3 {[%emt 0:00:16]} Qd7 {[%emt 0:01:38]} 32. b5 {[%emt 0:01:24]} Nd5 {[%emt 0:01:47]} 33. Qc6 {[%emt 0:01:32]} Ndf4 {[%emt 0:00:35]} 34. Be3 {[%emt 0:01:48]} Nxd4 {[%emt 0:00:15]} 35. Qxd7 {[%emt 0:00:20]} Nfe2+ {[%emt 0:00:33]} 36. Kf2 {[%emt 0:00:18]} Rxd7 {[%emt 0:00:06]} 37. g4 {[%emt 0:00:21]} Rd8 {[%emt 0:00:51]} 38. f4 {[%emt 0:00:28]} Kf8 {[%emt 0:00:28]} 39. f5 {[%emt 0:00:28]} Ke8 {[%emt 0:00:10]} 40. a4 {[%emt 0:00:00]} Rd7 {[%emt 0:00:00]} 41. h4 {[%emt 0:00:00]} Ke7 {[%emt 0:00:00]} 42. h5 {[%emt 0:00:00]} Kf6 {[%emt 0:00:00]} 0-1

[Event "Portuguese Chess-ch 2022"]
[Site "Leiria"]
[Date "2022.09.15"]
[Round "5.4"]
[White "Guilherme Santos, Jose"]
[Black "Fernandes, Antonio"]
[Result "1/2-1/2"]
[ECO "A16"]
[WhiteElo "2384"]
[BlackElo "2327"]
[Annotator "ChessBase"]
[PlyCount "137"]
[EventDate "2022.09.11"]
[EventCountry "POR"]
[SourceTitle "playchess.com"]
[Source "ChessBase"]
[SourceQuality "1"]
[TimeControl "5400+30"]

1. c4 {[%emt 0:07:33]} Nf6 {[%emt 0:00:41]} 2. Nc3 {[%emt 0:00:16]} d5 {[%emt 0:00:30]} 3. cxd5 {[%emt 0:02:01]} Nxd5 {[%emt 0:00:03]} 4. Nf3 {[%emt 0:00:07]} c5 {[%emt 0:10:45]} 5. g3 {[%emt 0:04:27]} Nc6 {[%emt 0:02:44]} 6. Bg2 {[%emt 0:00:05]} g6 {[%emt 0:05:20]} 7. O-O {[%emt 0:01:13]} Bg7 {[%emt 0:02:00]} 8. d3 {[%emt 0:00:23]} Nc7 {[%emt 0:07:35]} 9. Be3 {[%emt 0:02:42]} b6 {[%emt 0:08:55]} 10. Qd2 {[%emt 0:00:07]} O-O {[%emt 0:01:43]} 11. Rfd1 {[%emt 0:00:04]} e5 {[%emt 0:03:37]} 12. Bh6 {[%emt 0:01:15]} Rb8 {[%emt 0:06:01]} 13. Rab1 {[%emt 0:01:40]} Re8 {[%emt 0:07:08]} 14. Bxg7 {[%emt 0:01:53]} Kxg7 {[%emt 0:00:04]} 15. Ne1 {[%emt 0:01:44]} Bb7 {[%emt 0:07:27]} 16. Nc2 {[%emt 0:01:08]} Nd4 {[%emt 0:01:05]} 17. Bxb7 {[%emt 0:02:27]} Rxb7 {[%emt 0:00:08]} 18. b4 {[%emt 0:03:27]} Nce6 {[%emt 0:01:44]} 19. bxc5 {[%emt 0:22:55]} Nxc5 {[%emt 0:05:13]} 20. Nb5 {[%emt 0:06:04]} Rd7 {[%emt 0:01:47]} 21. Ncxd4 {[%emt 0:11:08]} exd4 {[%emt 0:00:04]} 22. Rb4 {[%emt 0:00:31]} Qf6 {[%emt 0:03:58]} 23. Rc1 {[%emt 0:03:10]} Qe5 {[%emt 0:01:25]} 24. Re1 {[%emt 0:04:46]} a6 {[%emt 0:07:03]} 25. Na3 {[%emt 0:00:05]} b5 {[%emt 0:00:10]} 26. Nc2 {[%emt 0:00:13]} Na4 {[%emt 0:04:58]} 27. e3 {[%emt 0:01:24]} dxe3 {[%emt 0:00:32]} 28. Nxe3 {[%emt 0:06:36]} Kg8 {[%emt 0:00:24]} 29. d4 {[%emt 0:01:45]} Nb6 {[%emt 0:01:58]} 30. Rd1 {[%emt 0:00:41]} Red8 {[%emt 0:02:07]} 31. Ng4 {[%emt 0:05:08]} Qg7 {[%emt 0:01:40]} 32. Qg5 {[%emt 0:02:26]} Nd5 {[%emt 0:00:28]} 33. Rb3 {[%emt 0:00:17]} h5 {[%emt 0:00:51]} 34. Ne3 {[%emt 0:00:37]} Nc7 {[%emt 0:04:04]} 35. d5 {[%emt 0:03:13]} f6 {[%emt 0:00:50]} 36. Qf4 {[%emt 0:00:04]} Nxd5 {[%emt 0:00:08]} 37. Nxd5 {[%emt 0:00:04]} Rxd5 {[%emt 0:00:03]} 38. Rxd5 {[%emt 0:00:04]} Rxd5 {[%emt 0:00:07]} 39. Rf3 {[%emt 0:00:01]} f5 {[%emt 0:02:10]} 40. Re3 {[%emt 0:00:00]} Rd1+ {[%emt 0:00:00]} 41. Kg2 {[%emt 0:00:00]} Qb7+ {[%emt 0:00:00]} 42. Kh3 {[%emt 0:00:00]} Kh7 {[%emt 0:00:00]} 43. Re6 {[%emt 0:00:00]} Rd7 {[%emt 0:00:00]} 44. Qe5 {[%emt 0:00:00]} Rg7 {[%emt 0:00:00]} 45. Qf6 {[%emt 0:00:00]} a5 {[%emt 0:00:00]} 46. f4 {[%emt 0:00:00]} Qd7 {[%emt 0:00:00]} 47. Rd6 {[%emt 0:03:22]} Qe7 {[%emt 0:00:00]} 48. Qxe7 {[%emt 0:00:04]} Rxe7 {[%emt 0:00:00]} 49. Rd5 {[%emt 0:00:02]} Re2 {[%emt 0:00:00]} 50. a3 {[%emt 0:00:13]} Rb2 {[%emt 0:00:00]} 51. Rd8 {[%emt 0:00:27]} b4 {[%emt 0:04:27]} 52. axb4 {[%emt 0:00:13]} axb4 {[%emt 0:00:02]} 53. Rb8 {[%emt 0:01:29]} Kh6 {[%emt 0:00:47]} 54. Rb6 {[%emt 0:02:15]} h4 {[%emt 0:00:18]} 55. gxh4 {[%emt 0:02:04]} Rb1 {[%emt 0:01:24]} 56. Rb7 {[%emt 0:00:25]} b3 {[%emt 0:01:05]} 57. Kg2 {[%emt 0:00:08]} Kh5 {[%emt 0:01:09]} 58. Kh3 {[%emt 0:00:44]} Kh6 {[%emt 0:00:13]} 59. Kg2 {[%emt 0:00:04]} b2 {[%emt 0:01:32]} 60. h3 {[%emt 0:00:58]} Ra1 {[%emt 0:00:19]} 61. Rxb2 {[%emt 0:00:05]} Ra4 {[%emt 0:00:12]} 62. Kg3 {[%emt 0:00:21]} Ra3+ {[%emt 0:00:13]} 63. Kg2 {[%emt 0:00:17]} Ra4 {[%emt 0:01:18]} 64. Kg3 {[%emt 0:00:05]} Ra3+ {[%emt 0:00:50]} 65. Kg2 {[%emt 0:00:05]} Kh5 {[%emt 0:00:25]} 66. Rb8 {[%emt 0:00:05]} Ra2+ {[%emt 0:00:09]} 67. Kg3 {[%emt 0:00:06]} Ra3+ {[%emt 0:00:05]} 68. Kg2 {[%emt 0:00:04]} Ra2+ {[%emt 0:00:05]} 69. Kg3 {[%emt 0:00:05]} 1/2-1/2

[Event "Portuguese Chess-ch 2022"]
[Site "Leiria"]
[Date "2022.09.15"]
[Round "5.5"]
[White "Rego, Pedro Filipe"]
[Black "Rocha, Sergio"]
[Result "1-0"]
[ECO "C16"]
[WhiteElo "2273"]
[BlackElo "2324"]
[Annotator "ChessBase"]
[PlyCount "69"]
[EventDate "2022.09.11"]
[EventCountry "POR"]
[SourceTitle "playchess.com"]
[Source "ChessBase"]
[SourceQuality "1"]
[TimeControl "5400+30"]

1. e4 {[%emt 0:01:26]} e6 {[%emt 0:00:07]} 2. d4 {[%emt 0:00:15]} d5 {[%emt 0:00:06]} 3. Nc3 {[%emt 0:00:17]} Bb4 {[%emt 0:00:08]} 4. e5 {[%emt 0:00:04]} Qd7 {[%emt 0:00:09]} 5. Qg4 {[%emt 0:00:22]} f5 {[%emt 0:00:07]} 6. Qg3 {[%emt 0:00:08]} b6 {[%emt 0:00:12]} 7. h4 {[%emt 0:01:22]} Ba6 {[%emt 0:00:09]} 8. Bxa6 {[%emt 0:00:10]} Nxa6 {[%emt 0:00:05]} 9. Nh3 {[%emt 0:00:04]} Nb8 {[%emt 0:02:22]} 10. O-O {[%emt 0:02:53]} Nc6 {[%emt 0:00:12]} 11. Ne2 {[%emt 0:00:15]} Nh6 {[%emt 0:01:14]} 12. c3 {[%emt 0:00:39]} Bf8 {[%emt 0:00:17]} 13. Nef4 {[%emt 0:01:51]} O-O-O {[%emt 0:04:55]} 14. b4 {[%emt 0:04:49]} Nf7 {[%emt 0:00:45]} 15. a4 {[%emt 0:07:06]} Be7 {[%emt 0:02:35]} 16. a5 {[%emt 0:03:39]} b5 {[%emt 0:00:34]} 17. a6 {[%emt 0:01:12]} Rdg8 {[%emt 0:03:37]} 18. Nxe6 {[%emt 0:07:42]} g5 {[%emt 0:15:07]} 19. Nexg5 {[%emt 0:03:49]} Nxg5 {[%emt 0:08:48]} 20. hxg5 {[%emt 0:02:26]} Bxg5 {[%emt 0:04:14]} 21. Bxg5 {[%emt 0:13:02]} h6 {[%emt 0:00:30]} 22. e6 {[%emt 0:02:15]} Qxe6 {[%emt 0:04:03]} 23. Rfe1 {[%emt 0:04:15]} Qd7 {[%emt 0:00:26]} 24. Qd3 {[%emt 0:00:40]} hxg5 {[%emt 0:01:06]} 25. Qxb5 {[%emt 0:01:35]} Qd6 {[%emt 0:02:41]} 26. Qc5 {[%emt 0:03:58]} Qh6 {[%emt 0:00:52]} 27. Qxd5 {[%emt 0:01:22]} g4 {[%emt 0:00:48]} 28. Qxf5+ {[%emt 0:01:56]} Kb8 {[%emt 0:00:16]} 29. Re6 {[%emt 0:03:37]} Qh4 {[%emt 0:00:14]} 30. Rxc6 {[%emt 0:00:59]} gxh3 {[%emt 0:00:14]} 31. Qb5+ {[%emt 0:00:19]} Kc8 {[%emt 0:00:03]} 32. Qb7+ {[%emt 0:00:14]} Kd8 {[%emt 0:00:03]} 33. Qxc7+ {[%emt 0:00:09]} Ke8 {[%emt 0:00:03]} 34. Re1+ {[%emt 0:01:04]} Kf8 {[%emt 0:00:04]} 35. Qd6+ {[%emt 0:00:11]} 1-0

[Event "Portuguese Chess-ch 2022"]
[Site "Leiria"]
[Date "2022.09.16"]
[Round "6.1"]
[White "Fernandes, Antonio"]
[Black "Rego, Pedro Filipe"]
[Result "1/2-1/2"]
[ECO "B30"]
[WhiteElo "2327"]
[BlackElo "2273"]
[Annotator "TA"]
[PlyCount "86"]
[EventDate "2022.09.11"]
[EventCountry "POR"]
[SourceTitle "playchess.com"]
[Source "ChessBase"]
[SourceQuality "1"]
[TimeControl "5400+30"]

{[%evp 14,86,34,39,41,25,16,23,26,17,20,0,30,11,0,0,0,0,0,0,0,-7,0,-69,-69,-61,-60,-71,-69,-72,-64,-60,-61,-69,-70,-72,-71,-207,0,0,0,0,0,0,0,0,0,0,0,0,0,0,0,0,0,0,0,0,0,0,0,0,0,0,0,0,0,0,0,0,0,0,0,0,0]} 1. e4 c5 {[%emt 0:00:37]} 2. Nf3 {[%emt 0:19:38]} Nc6 {[%emt 0:00:09]} 3. Bb5 {[%emt 0:00:15]} e6 {[%emt 0:00:06]} 4. O-O {[%emt 0:00:28]} Nge7 {[%emt 0:00:16]} 5. Re1 {[%emt 0:01:01]} a6 {[%emt 0:00:04]} 6. Bf1 {[%emt 0:00:20]} d5 {[%emt 0:00:20]} 7. exd5 {[%emt 0:00:48]} Qxd5 {[%emt 0:00:09]} 8. Nc3 {[%emt 0:03:59][%cal Bb1c3,Bc3e2,Be2f4][%mdl 32]} Qd8 {[%emt 0:00:05] B30: Sicilian: 2...Nc6 3 Bb5, lines without ...g6.} 9. b3 {[%emt 0:11:16] [#]} (9. Ne4 $5 {[%cal Re4c5]}) 9... b6 $146 {[%emt 0:00:55]} ({Predecessor:} 9... Nf5 10. Bd3 Be7 11. Bxf5 exf5 12. Bb2 O-O 13. Ne2 b5 14. d4 Bf6 15. Rb1 cxd4 16. Nexd4 Nxd4 17. Bxd4 {½-½ (33) Demchenko,A (2632)-Tsydypov,Z (2558) Khanty-Mansiysk 2020}) 10. Bb2 {[%emt 0:01:11]} Bb7 {[%emt 0:00:19] White has an edge.} 11. Ne2 {[%emt 0:02:57]} Nf5 {[%emt 0:01:13]} 12. d4 {[%emt 0:00:34][%cal Od4d5] Black must now prevent d5!} Be7 {[%emt 0:06:41]} 13. dxc5 {[%emt 0:02:14]} (13. d5 $5 exd5 14. Nf4 $11) 13... Bxc5 {[%emt 0:03:51]} 14. Nf4 {[%emt 0:18:07]} O-O {[%emt 0:07:08]} 15. Bd3 {[%emt 0:15:00]} Nb4 {[%emt 0:16:28]} 16. Bxf5 {[%emt 0:01:10]} exf5 {[%emt 0:00:21]} 17. Nh5 {[%emt 0:00:26]} f6 {[%emt 0:00:39]} 18. a3 {[%emt 0:00:38]} (18. Nd4 $11) 18... Qxd1 $15 {[%emt 0:03:37]} 19. Rexd1 {[%emt 0:01:07]} Nxc2 {[%emt 0:04:34]} 20. Rac1 {[%emt 0:00:27]} Rfd8 {[%emt 0:00:23]} 21. b4 {[%emt 0:02:14]} Bf8 {[%emt 0:02:00] Threatens to win with ...Rxd1+. A strong pair of Bishops.} 22. Nh4 {[%emt 0:00:40]} a5 {[%emt 0:09:54]} 23. Nxf5 {[%emt 0:05:38]} axb4 {[%emt 0:05:16]} 24. axb4 {[%emt 0:00:48]} Nxb4 {[%emt 0:00:56] ...Rxd1+ is the strong threat.} 25. h3 {[%emt 0:01:01] [#]} (25. Nh6+ $17 gxh6 26. Nxf6+ Kg7 27. Rc7+ Kg6 28. Nd7 Rxd7 29. Rdxd7) 25... Nd3 $2 {[%emt 0:01:55]} (25... Rxd1+ $1 $19 26. Rxd1 Nd5) 26. Rc7 $11 {[%emt 0:03:50] Strongly threatening Nh6+. The position is equal.} Be4 {[%emt 0:02:02]} (26... Nxb2 $2 27. Nh6+ Kh8 28. Nf7+ Kg8 29. Rxd8 Rxd8 30. Nxd8 $18) 27. Nh6+ {[%emt 0:01:18]} gxh6 {[%emt 0:04:03]} 28. Nxf6+ {[%emt 0:00:52]} Kh8 {[%emt 0:00:14]} 29. Rxd3 {[%emt 0:00:12]} Bxd3 {[%emt 0:01:41]} (29... Rxd3 {is a self mate.} 30. Nxe4+) 30. Ng4+ {[%emt 0:01:57]} Kg8 {[%emt 0:01:17]} 31. Nf6+ {[%emt 0:00:37]} Kh8 {[%emt 0:00:05]} 32. Ne8+ {[%emt 0:02:36]} Kg8 {[%emt 0:00:07]} 33. Nf6+ {[%emt 0:00:28]} Kh8 {[%emt 0:00:04]} 34. Nxh7+ {[%emt 0:00:46]} Kg8 $1 {[%emt 0:01:03]} 35. Nf6+ {[%emt 0:00:23]} Kh8 {[%emt 0:00:07]} 36. Nd5+ {[%emt 0:01:31]} Kg8 {[%emt 0:00:39]} 37. Nf6+ {[%emt 0:00:06]} Kh8 {[%emt 0:00:04]} 38. Ne8+ {[%emt 0:01:28]} Kg8 {[%emt 0:00:13]} 39. Nf6+ {[%emt 0:00:04]} Kh8 {[%emt 0:00:08]} 40. Ne4+ {[%emt 0:00:00]} Kg8 {[%emt 0:00:00]} 41. Nf6+ {[%emt 0:00:00]} Kh8 {[%emt 0:00:00]} 42. Ng4+ {[%emt 0:00:00]} Kg8 {[%emt 0:00:00] [#] aiming for ...Ra2.} 43. Nf6+ {[%emt 0:00:00]} Kh8 {[%emt 0:00:00] Weighted Error Value: White=0.09 (flawless) /Black=0.14 (very precise)} 1/2-1/2